bitfinex/quotes_ETHUSD_20250415
["timestamp","ask_amount","ask_price","bid_price","bid_amount"]
[1744684866101,0.7949,1620.4,1620.1,6.17223]
[1744684866304,0.7949,1620.6,1620.3,6.17169]
[1744684867203,0.7949,1620.6,1620.4,6.17131]
[1744684867712,0.7719,1620.9,1620.6,12.34083]
[1744684868239,0.7719,1620.9,1620.6,6.17041]
[1744684868435,0.7719,1620.9,1620.6,6.1704]
[1744684868606,6.16916,1621.0,1620.6,8.74540963]
[1744684868803,6.16955,1620.9,1620.5,6.17089]
[1744684869003,6.16955,1620.9,1620.5,12.34163]
[1744684869249,6.16916,1621.0,1620.4,3.11160963]
[1744684869456,6.16916,1621.0,1620.6,6.17027]
[1744684870105,6.16916,1621.0,1620.6,12.34065]
[1744684870358,6.96145,1621.1,1620.7,6.17011]
[1744684870681,6.16906,1621.0,1620.7,6.6320593]
[1744684870944,6.16906,1621.0,1620.7,0.4619493]
[1744684871109,6.16906,1621.0,1620.6,6.17027]
[1744684871310,6.16906,1621.0,1620.6,12.3406]
[1744684871835,6.96165,1621.1,1620.7,6.17015]
[1744684873043,6.96165,1621.1,1620.7,6.16997]
[1744684873364,12.67868,1621.3,1621.0,6.16903]
[1744684873571,6.5107,1621.3,1621.0,6.16903]
[1744684873864,6.5107,1621.3,1621.0,6.16884]
[1744684874067,6.5107,1621.3,1621.1,6.16847]
[1744684874209,5.723,1621.3,1621.1,6.16847]
[1744684874414,5.723,1621.3,1621.1,6.63018789]
[1744684874820,0.05,1621.4,1621.2,6.16809]
[1744684875150,0.05,1621.4,1621.1,0.46171789]
[1744684875332,6.9775,1621.3,1620.9,9.16935]
[1744684875719,6.97747,1621.3,1620.9,9.16935]
[1744684875930,6.16845,1621.2,1620.9,3.0]
[1744684876419,6.97745,1621.3,1620.9,9.16939]
[1744684876620,6.1684,1621.2,1620.9,9.16939]
[1744684877031,6.1684,1621.2,1620.9,6.16939]
[1744684877228,6.1684,1621.2,1620.9,0.47223661]
[1744684877444,0.7812,1621.0,1620.7,11.89302]
[1744684877749,0.7812,1621.0,1620.8,6.1697]
[1744684878512,6.93582,1621.2,1620.8,6.1697]
[1744684878716,6.93582,1621.2,1620.8,12.33929]
[1744684878941,0.7675,1621.2,1620.9,6.16937]
[1744684879148,6.16789,1621.3,1620.9,6.70588]
[1744684879518,6.16827,1621.2,1620.9,6.70588]
[1744684880014,0.8,1621.1,1620.8,6.16972]
[1744684880219,6.9688,1621.1,1620.7,19.07327185]
[1744684880449,6.9688,1621.1,1620.8,6.16978]
[1744684880824,0.8,1621.1,1620.9,6.16935]
[1744684881027,7.0007,1621.3,1620.9,6.16935]
[1744684881231,0.28888024,1621.2,1620.9,6.16928]
[1744684882447,0.28888024,1621.2,1620.9,6.16927]
[1744684882649,0.28888024,1621.2,1620.9,6.16924]
[1744684882855,6.45719024,1621.2,1620.8,6.16972]
[1744684883044,12.33777,1621.1,1620.7,12.90363185]
[1744684883241,6.93789,1621.0,1620.7,6.19690185]
[1744684883418,0.28415524,1620.9,1620.7,3.47390185]
[1744684884154,0.28415524,1620.9,1620.7,9.64404185]
[1744684884460,0.28415524,1620.9,1620.7,3.47390185]
[1744684884653,6.45357524,1620.9,1620.7,0.47390185]
[1744684884854,6.45357524,1620.9,1620.5,12.87834]
[1744684885929,6.16992,1620.8,1620.5,0.46988597]
[1744684886133,1.05657286,1620.7,1620.1,6.70893]
[1744684886334,6.17145,1620.4,1620.1,0.5366]
[1744684886556,6.45198087,1620.3,1620.0,6.62447402]
[1744684886771,6.45198087,1620.3,1620.1,4.0]
[1744684886945,12.62403087,1620.3,1620.1,4.0]
[1744684887277,6.17207,1620.2,1620.0,0.45166402]
[1744684887462,6.17207,1620.2,1619.9,6.2586]
[1744684887631,0.27690421,1620.1,1619.9,3.5366]
[1744684887830,6.17207,1620.2,1619.9,3.5366]
[1744684888030,0.27690421,1620.1,1619.9,3.5366]
[1744684888224,6.17207,1620.2,1619.9,3.5366]
[1744684888457,0.27690421,1620.1,1619.9,3.5366]
[1744684888643,0.27690421,1620.1,1619.9,9.70978]
[1744684888846,6.17207,1620.2,1619.9,9.70978]
[1744684889055,0.27690421,1620.1,1619.9,9.70978]
[1744684889431,12.34373,1620.3,1619.9,9.70978]
[1744684889633,0.27690421,1620.2,1619.9,9.70978]
[1744684889832,0.27690421,1620.2,1619.9,10.18191927]
[1744684890343,0.27690421,1620.2,1619.9,16.35491927]
[1744684890861,0.27690421,1620.2,1619.9,10.18173927]
[1744684891176,0.27690421,1620.2,1620.0,6.23447278]
[1744684891360,0.7725,1620.4,1620.1,6.17245]
[1744684891670,0.27690421,1620.3,1620.1,6.17245]
[1744684891875,0.27690421,1620.3,1620.0,6.17275]
[1744684892182,0.27690421,1620.2,1620.0,6.17275]
[1744684893599,0.27690421,1620.2,1619.9,10.18190927]
[1744684894385,0.27690421,1620.2,1619.9,16.35491927]
[1744684894680,0.27690421,1620.2,1620.0,6.17282]
[1744684895953,0.27690421,1620.2,1619.9,10.18174927]
[1744684896972,0.27690421,1620.2,1619.9,9.64514927]
[1744684897153,6.44901421,1620.2,1619.9,9.64514927]
[1744684902891,0.27690421,1620.2,1619.9,15.87990204]
[1744684903056,0.27690421,1620.2,1620.0,6.17281]
[1744684903981,0.27690421,1620.2,1620.0,12.34562]
[1744684904186,6.94387,1620.4,1620.1,12.8815]
[1744684904187,0.7725,1620.4,1620.1,12.8815]
[1744684904388,0.7589,1620.6,1620.2,0.0617164]
[1744684904555,0.7589,1620.6,1620.4,6.17102]
[1744684904886,0.7589,1620.6,1620.3,6.17158]
[1744684906071,6.92947,1620.6,1620.3,6.17158]
[1744684907393,6.17102,1620.5,1620.1,9.17242]
[1744684907761,6.17102,1620.5,1620.1,15.3447]
[1744684907994,12.34217,1620.5,1620.1,9.17228]
[1744684910201,6.17133,1620.4,1620.0,6.17279]
[1744684910360,6.9637,1620.3,1619.9,13.35505927]
[1744684911297,0.2703921,1620.2,1619.9,13.35505927]
[1744684911474,0.2703921,1620.2,1619.9,7.18189927]
[1744684911794,6.4424721,1620.2,1619.8,6.17359]
[1744684912294,7.16591931,1620.2,1619.8,6.17359]
[1744684912498,0.7633,1620.1,1619.8,6.17359]
[1744684912665,6.93589,1620.1,1619.7,12.43154]
[1744684912987,0.27105188,1620.0,1619.7,18.60548]
[1744684913402,0.27105188,1620.0,1619.7,19.06969474]
[1744684914387,0.27105188,1620.0,1619.8,6.17357]
[1744684914861,0.27105188,1620.0,1619.7,7.17475474]
[1744684915562,0.27105188,1620.0,1619.7,0.46421474]
[1744684915763,6.17324,1619.9,1619.5,9.71132]
[1744684916091,1.0302129,1619.8,1619.5,6.17472]
[1744684916488,1.0302129,1619.8,1619.6,6.17434]
[1744684917372,0.2684129,1619.8,1619.7,6.17398]
[1744684917573,0.77,1620.0,1619.8,6.1735]
[1744684918593,0.77,1620.0,1619.7,12.34796]
[1744684918900,0.77,1620.1,1619.7,6.17382]
[1744684919209,6.94264,1620.1,1619.7,6.17382]
[1744684919375,13.11534,1620.1,1619.7,6.17382]
[1744684919701,12.34598,1620.0,1619.6,6.1743]
[1744684920071,6.17288,1620.0,1619.6,12.34851]
[1744684920271,6.17288,1620.0,1619.7,6.17393]
[1744684921116,12.34608,1620.0,1619.6,6.17417]
[1744684921904,6.17288,1620.0,1619.6,12.34839]
[1744684922310,6.17288,1620.0,1619.7,6.17392]
[1744684922811,6.17288,1620.0,1619.6,6.17417]
[1744684922998,6.17325,1619.9,1619.6,6.17417]
[1744684923201,0.8327,1619.8,1619.6,6.17417]
[1744684923381,0.8327,1619.8,1619.6,6.17416]
[1744684923576,6.17252,1620.1,1619.7,6.17398]
[1744684923577,0.8327,1619.9,1619.7,6.17398]
[1744684926214,0.26428905,1619.8,1619.7,6.17398]
[1744684926380,0.8327,1619.9,1619.7,6.17398]
[1744684926575,0.26428905,1619.8,1619.7,6.17398]
[1744684926804,0.8327,1619.9,1619.7,6.17398]
[1744684927022,0.26428905,1619.8,1619.5,9.17471]
[1744684927183,6.17366,1619.8,1619.5,9.17471]
[1744684927390,0.26428905,1619.7,1619.5,9.17471]
[1744684927995,0.26428905,1619.7,1619.5,6.17471]
[1744684928398,0.26428905,1619.7,1619.6,6.17436]
[1744684929215,0.8327,1619.9,1619.6,6.17436]
[1744684929416,0.26428905,1619.7,1619.6,6.17436]
[1744684929713,7.00607,1619.9,1619.5,12.34917]
[1744684930018,13.880247,1619.9,1619.5,6.17457]
[1744684930194,0.26428905,1619.8,1619.5,6.17457]
[1744684930515,13.880247,1619.9,1619.5,6.17457]
[1744684930718,0.26428905,1619.7,1619.5,6.17457]
[1744684930934,0.8232,1619.7,1619.2,0.8439391]
[1744684931232,0.8232,1619.5,1619.3,6.17539]
[1744684931435,0.26428905,1619.6,1619.3,6.17539]
[1744684931617,0.700607,1619.9,1619.5,6.17474]
[1744684931618,6.99681,1619.8,1619.5,6.17474]
[1744684931821,8.3838967,1619.8,1619.4,6.71137]
[1744684932230,14.5577167,1619.8,1619.4,6.71137]
[1744684932701,8.3838967,1619.8,1619.4,6.71137]
[1744684933428,0.8232,1619.8,1619.6,6.17404]
[1744684934734,0.8232,1619.8,1619.5,6.64643552]
[1744684935236,0.8232,1619.8,1619.5,6.17446]
[1744684935632,6.99681,1619.8,1619.5,6.17446]
[1744684935830,8.313818,1619.8,1619.4,12.35]
[1744684938132,2.140208,1619.8,1619.5,6.17451]
[1744684938352,0.8232,1619.8,1619.7,6.17398]
[1744684938506,0.7655,1619.9,1619.7,6.17398]
[1744684938706,0.7655,1619.9,1619.6,6.17412]
[1744684938937,6.93877,1619.9,1619.5,12.88589]
[1744684939236,6.93877,1619.9,1619.5,6.17461]
[1744684939438,8.204347,1619.9,1619.5,6.17461]
[1744684939643,6.1736,1619.8,1619.5,6.17461]
[1744684939828,6.1736,1619.8,1619.4,6.17507]
[1744684939829,12.34743,1619.8,1619.4,6.17507]
[1744684940029,6.93948,1619.7,1619.4,3.0]
[1744684940635,6.93948,1619.7,1619.4,9.1751]
[1744684941010,0.25999877,1619.6,1619.4,9.1751]
[1744684941610,0.25999877,1619.6,1619.4,3.0]
[1744684941806,0.25999877,1619.6,1619.4,9.17495]
[1744684942019,0.25999877,1619.6,1619.5,6.71134]
[1744684942222,0.7558,1619.9,1619.6,6.17428]
[1744684942423,2.637681,1619.9,1619.6,6.23601728]
[1744684942622,0.7558,1619.9,1619.6,12.34852]
[1744684943731,0.7558,1619.9,1619.6,12.3484]
[1744684943914,0.7558,1619.9,1619.6,6.17416]
[1744684944114,0.7558,1619.9,1619.6,12.41006719]
[1744684944343,0.7558,1619.9,1619.7,6.17394]
[1744684944528,5.717,1620.0,1619.7,6.17394]
[1744684944835,5.717,1620.0,1619.8,6.17341]
[1744684945039,0.774,1620.2,1620.0,6.17271]
[1744684945754,6.94536,1620.4,1620.0,12.34542]
[1744684946047,9.08629296,1620.4,1620.0,12.34542]
[1744684946234,9.08629296,1620.4,1620.1,6.17244]
[1744684948015,9.08629296,1620.4,1620.0,6.17271]
[1744684948016,9.08639296,1620.4,1620.0,6.17271]
[1744684948209,6.94546,1620.4,1620.0,6.17271]
[1744684948442,6.94546,1620.4,1620.1,6.17242]
[1744684949319,6.5067,1620.5,1620.2,6.17199]
[1744684949519,0.7887,1620.7,1620.1,0.5366]
[1744684949717,6.5067,1620.9,1620.7,6.17002]
[1744684950338,5.718,1620.9,1620.7,12.34001]
[1744684950644,0.7807,1621.0,1620.7,6.16999]
[1744684950844,1.475644,1621.0,1620.5,6.17092]
[1744684951048,6.94973,1621.0,1620.4,0.5366]
[1744684951213,6.94973,1621.0,1620.6,12.34069]
[1744684951413,13.11905,1621.0,1620.6,6.17031]
[1744684951616,6.94973,1621.0,1620.6,6.17031]
[1744684952148,6.94973,1621.0,1620.6,12.34072]
[1744684952351,6.94973,1621.0,1620.6,6.17031]
[1744684952649,6.94973,1621.0,1620.6,12.34064]
[1744684952841,6.94973,1621.0,1620.7,6.17015]
[1744684954323,0.26907219,1620.9,1620.7,6.17015]
[1744684955752,0.26907219,1620.9,1620.6,6.64204857]
[1744684956057,6.97362,1620.8,1620.4,6.70786]
[1744684956351,6.97362,1620.8,1620.4,12.87894]
[1744684956721,0.26907219,1620.7,1620.5,6.17093]
[1744684956967,0.26907219,1620.7,1620.5,6.6936559]
[1744684958366,0.26907219,1620.7,1620.6,6.17055]
[1744684958581,2.19e-06,1620.7,1620.6,12.89385176]
[1744684958740,2.19e-06,1620.7,1620.6,12.28215963]
[1744684958741,0.23413789,1620.7,1620.6,12.28215963]
[1744684958928,6.16843,1621.2,1620.8,6.16952]
[1744684959325,0.21194196,1621.1,1620.8,12.33902]
[1744684959526,0.05,1621.4,1621.2,6.16808]
[1744684959736,0.05,1621.4,1621.1,6.16865]
[1744684959931,0.05,1621.4,1621.0,5.57500963]
[1744684960158,0.05,1621.4,1621.2,6.16799]
[1744684960358,0.05,1621.4,1621.3,9.76615317]
[1744684960523,0.05,1621.4,1621.3,9.70448]
[1744684960960,0.05,1621.4,1621.3,10.25448]
[1744684961158,0.05,1621.4,1621.3,9.70448]
[1744684962227,0.05,1621.4,1621.3,12.89115486]
[1744684962439,0.05,1621.4,1621.3,10.25448]
[1744684962636,0.05,1621.4,1621.3,9.70448]
[1744684962857,0.05,1621.4,1621.3,10.25448]
[1744684963380,0.05,1622.4,1621.9,6.1656]
[1744684963541,6.21374,1622.4,1621.9,8.74024963]
[1744684963875,1.419674,1622.3,1621.9,12.33064]
[1744684964030,12.37777,1622.4,1622.0,0.06164433]
[1744684964031,0.05,1622.4,1622.0,0.06164433]
[1744684964230,0.05,1622.4,1622.1,6.16475]
[1744684964529,0.05,1622.4,1622.3,0.5366]
[1744684964761,0.05,1622.4,1622.3,12.27568963]
[1744684965060,0.05,1622.4,1622.1,6.1648]
[1744684965228,0.05,1622.4,1622.3,6.16408]
[1744684965433,0.05,1622.4,1622.2,6.70084]
[1744684965632,0.05,1622.4,1622.2,12.86503]
[1744684965855,0.05,1622.4,1622.3,6.16408]
[1744684966071,0.05,1622.4,1622.3,8.73908963]
[1744684966281,0.05,1622.4,1622.2,0.5366]
[1744684966491,0.05,1622.4,1622.1,12.32943]
[1744684966757,0.05,1622.4,1622.3,12.27568963]
[1744684967140,0.05,1622.4,1622.3,12.82568963]
[1744684967341,0.3692916,1622.9,1622.7,6.16234]
[1744684967647,0.3692916,1622.9,1622.6,8.73792963]
[1744684967960,0.3692916,1622.9,1622.4,3.5366]
[1744684967961,0.3692916,1622.9,1622.7,6.16256]
[1744684968468,0.3692916,1622.9,1622.8,9.69878]
[1744684968672,0.3692916,1622.9,1622.8,12.33540784]
[1744684968841,0.3692916,1622.9,1622.8,12.27378963]
[1744684969236,6.21021,1623.4,1623.0,3.0]
[1744684969237,0.05,1623.4,1623.0,3.0]
[1744684969576,6.16031,1623.3,1622.9,6.62773207]
[1744684969763,6.21016,1623.4,1623.0,6.16137]
[1744684970062,13.685373,1623.4,1623.0,6.16137]
[1744684970361,6.16076,1623.2,1622.8,6.69875]
[1744684970560,6.16107,1623.1,1622.7,9.16239]
[1744684970738,0.8102,1623.1,1622.6,6.1629]
[1744684970946,6.16196,1622.9,1622.6,3.0]
[1744684971144,0.19778316,1622.8,1622.6,9.16269]
[1744684971345,12.32348,1623.0,1622.6,9.22431165]
[1744684971542,6.16222,1622.8,1622.4,6.16337]
[1744684971773,12.32468,1622.8,1622.3,6.70066]
[1744684971948,0.19671049,1622.7,1622.4,4.0]
[1744684972140,6.35927049,1622.7,1622.4,4.0]
[1744684972471,7.61141954,1622.7,1622.3,6.70066]
[1744684972829,7.61141954,1622.7,1622.3,0.5366]
[1744684973058,6.16337,1622.5,1622.2,5.706]
[1744684973253,6.16337,1622.5,1622.1,6.16482]
[1744684973456,0.19671049,1622.4,1622.2,3.0]
[1744684974952,0.19671049,1622.4,1622.1,6.16479]
[1744684975852,6.36057049,1622.4,1622.0,9.70179]
[1744684976160,6.16415,1622.3,1622.0,3.0]
[1744684976353,6.99657854,1622.4,1622.0,3.0]
[1744684976554,6.99657854,1622.4,1622.0,9.16505]
[1744684977091,6.99657854,1622.4,1621.9,11.87037]
[1744684977239,6.16414,1622.3,1621.9,18.03578]
[1744684977439,0.19283094,1622.2,1621.9,18.03578]
[1744684977634,6.16414,1622.3,1621.9,18.03578]
[1744684977833,0.19283094,1622.2,1621.9,18.03578]
[1744684978349,6.16414,1622.3,1621.9,18.49313934]
[1744684978666,0.19283094,1622.2,1622.0,6.16522]
[1744684979172,6.16414,1622.3,1621.9,12.32772934]
[1744684979535,0.19283094,1622.2,1621.9,12.32772934]
[1744684979741,6.16414,1622.3,1621.9,12.32772934]
[1744684979939,0.19283094,1622.2,1621.9,12.32772934]
[1744684980139,6.16414,1622.3,1621.9,12.32772934]
[1744684980335,0.19283094,1622.2,1621.9,12.32772934]
[1744684980540,6.16414,1622.3,1621.9,18.49313934]
[1744684980770,0.19283094,1622.2,1621.9,18.49313934]
[1744684980978,0.19283094,1622.2,1622.1,4.0866]
[1744684981180,6.1626,1622.7,1622.3,6.16378]
[1744684981357,6.1626,1622.7,1622.4,3.0]
[1744684981547,1.232348,1622.9,1622.5,0.5366]
[1744684981752,6.16057,1623.3,1622.7,3.0]
[1744684981978,6.781627,1623.3,1622.8,6.16198]
[1744684982178,6.16032,1623.3,1623.0,6.16142]
[1744684982348,6.16073,1623.2,1622.9,3.45689713]
[1744684982553,6.16159,1623.0,1622.7,3.0]
[1744684982784,6.16277,1622.7,1622.3,6.16383]
[1744684983082,6.16277,1622.7,1622.5,4.0]
[1744684983668,12.32558,1622.7,1622.5,4.0]
[1744684983881,12.32558,1622.7,1622.2,6.16443]
[1744684983882,7.471298,1622.7,1622.2,6.16443]
[1744684984181,13.634118,1622.7,1622.3,6.16405]
[1744684984545,13.08593,1622.8,1622.4,6.2253155]
[1744684984951,6.9235,1622.8,1622.4,6.2253155]
[1744684985271,13.08596,1622.8,1622.4,6.2253155]
[1744684985774,6.16296,1622.6,1622.2,6.62019782]
[1744684986078,0.17640072,1622.5,1622.2,6.16441]
[1744684987146,0.17640072,1622.5,1622.3,6.22571112]
[1744684987384,6.16258,1622.7,1622.3,6.22571112]
[1744684987580,0.17640072,1622.4,1622.3,6.22571112]
[1744684987895,6.16258,1622.7,1622.3,6.22571112]
[1744684988050,0.17640072,1622.4,1622.3,6.16408]
[1744684988474,6.16258,1622.7,1622.3,6.16408]
[1744684988651,12.32539,1622.7,1622.3,6.16408]
[1744684988985,12.50266072,1622.6,1622.2,6.62520548]
[1744684989284,6.33937072,1622.6,1622.2,0.46079548]
[1744684989483,6.33937072,1622.6,1622.1,14.86868]
[1744684989684,6.16333,1622.5,1622.2,6.16442]
[1744684989880,6.33937072,1622.6,1622.2,6.16442]
[1744684990049,6.16297,1622.6,1622.2,6.22597489]
[1744684990252,0.17640072,1622.5,1622.2,6.22597489]
[1744684990452,0.17640072,1622.5,1622.2,6.16434]
[1744684991052,0.17640072,1622.5,1622.3,6.16407]
[1744684992904,13.08615,1622.8,1622.4,6.1637]
[1744684993055,6.16258,1622.7,1622.4,6.1637]
[1744684993367,6.34030347,1622.7,1622.4,6.1637]
[1744684993569,0.17772347,1622.7,1622.4,6.1637]
[1744684993774,0.17772347,1622.7,1622.4,12.38885104]
[1744684993954,0.17772347,1622.7,1622.4,12.32722]
[1744684994154,0.17772347,1622.7,1622.4,6.16352]
[1744684994382,0.17772347,1622.7,1622.4,6.22514885]
[1744684994751,0.17772347,1622.7,1622.6,9.16294]
[1744684995085,6.16068,1623.2,1622.8,6.16194]
[1744684995583,6.16068,1623.2,1622.8,12.32389]
[1744684995955,6.16068,1623.2,1622.9,6.16174]
[1744684996156,6.16033,1623.3,1622.9,6.16174]
[1744684996383,6.16033,1623.3,1622.9,12.32338]
[1744684996589,6.16033,1623.3,1622.9,6.16164]
[1744684996961,6.16073,1623.2,1622.9,6.16164]
[1744684998766,6.16029,1623.3,1622.7,0.99889362]
[1744684998972,6.16162,1623.0,1622.7,3.46229362]
[1744684999171,12.32334,1623.0,1622.7,3.46229362]
[1744684999394,12.32392,1622.9,1622.5,12.40088]
[1744684999617,6.16218,1622.8,1622.5,6.2376]
[1744684999793,6.16218,1622.8,1622.5,0.5366]
[1744685000088,6.16183,1622.9,1622.5,6.69974]
[1744685000394,12.32392,1622.9,1622.5,6.69974]
[1744685001092,6.16227,1622.8,1622.5,6.69974]
[1744685001266,6.30785307,1622.8,1622.5,6.16314]
[1744685002186,0.14558307,1622.8,1622.5,6.16314]
[1744685002362,12.32398,1622.9,1622.5,6.16314]
[1744685002563,6.30778307,1622.8,1622.5,6.16314]
[1744685002761,6.30778307,1622.8,1622.5,6.22476594]
[1744685004092,6.1626,1622.7,1622.4,6.16367]
[1744685004261,6.16338,1622.5,1622.2,0.46987371]
[1744685004581,0.14558307,1622.4,1622.1,6.70138]
[1744685005602,6.30929307,1622.4,1622.1,6.70138]
[1744685005928,0.14558307,1622.4,1622.1,6.70138]
[1744685006089,0.14558307,1622.4,1622.1,6.70127]
[1744685006777,0.14558307,1622.4,1622.1,7.16524133]
[1744685008010,0.14558307,1622.4,1622.1,6.70127]
[1744685008912,0.14558307,1622.4,1622.1,0.5366]
[1744685009074,0.14558307,1622.4,1622.3,6.71408]
[1744685009274,13.1091,1623.0,1622.6,6.16291]
[1744685009702,0.14558307,1622.9,1622.6,6.16291]
[1744685010287,0.14558307,1622.9,1622.6,12.32582]
[1744685010486,0.14558307,1622.9,1622.6,6.16291]
[1744685010877,6.30741307,1622.9,1622.6,6.16291]
[1744685011484,12.46947307,1622.9,1622.5,6.16327]
[1744685014793,6.16227,1622.8,1622.4,6.16364]
[1744685014993,0.14682392,1622.7,1622.4,12.32717]
[1744685015197,0.14682392,1622.7,1622.4,6.16353]
[1744685015392,0.97892392,1622.7,1622.4,3.0]
[1744685015594,12.32657,1622.6,1622.2,11.86534]
[1744685015812,0.14641028,1622.5,1622.2,11.86534]
[1744685016386,0.14641028,1622.5,1622.2,18.02962]
[1744685017117,0.14641028,1622.5,1622.4,6.1637]
[1744685017325,0.8255,1622.9,1622.4,9.7003]
[1744685017637,6.16269,1622.7,1622.4,3.0]
[1744685018126,0.14492099,1622.6,1622.4,9.16352]
[1744685018343,6.16254,1622.8,1622.4,9.16352]
[1744685018555,0.14492099,1622.7,1622.4,15.32703]
[1744685019533,0.14492099,1622.7,1622.4,9.16351]
[1744685019712,6.97648,1622.6,1622.3,3.0]
[1744685019918,0.14748618,1622.5,1622.2,12.40192]
[1744685020132,0.14748618,1622.5,1622.2,5.701]
[1744685020335,6.31101618,1622.5,1622.2,5.701]
[1744685020740,6.31101618,1622.5,1622.2,6.16445]
[1744685021043,6.16388,1622.4,1622.1,0.46440014]
[1744685021207,6.1637,1622.4,1622.0,6.70158]
[1744685021409,6.1637,1622.4,1622.1,4.0]
[1744685021608,0.14641049,1622.3,1622.1,4.0]
[1744685021806,6.1637,1622.4,1622.1,10.16482]
[1744685022033,0.14641049,1622.3,1622.1,16.39115144]
[1744685022239,0.14641049,1622.3,1622.2,6.16446]
[1744685022441,6.16332,1622.5,1622.2,6.16446]
[1744685023034,0.14641049,1622.4,1622.3,6.16404]
[1744685023419,6.9763,1622.6,1622.3,6.16404]
[1744685023931,0.14641049,1622.5,1622.3,6.16404]
[1744685024412,0.14641049,1622.5,1622.2,6.16446]
[1744685024614,0.14641049,1622.5,1622.3,6.16405]
[1744685025236,0.14641049,1622.5,1622.4,6.1637]
[1744685025745,0.7825,1622.8,1622.5,6.16305]
[1744685025945,0.1458312,1622.7,1622.6,6.16291]
[1744685026132,6.94396,1623.0,1622.6,12.38744182]
[1744685026307,0.13354069,1622.9,1622.6,6.16291]
[1744685026507,0.13354069,1622.9,1622.5,12.32643]
[1744685026713,6.29549069,1622.9,1622.5,6.16315]
[1744685026917,12.45755069,1622.9,1622.5,6.16315]
[1744685027460,6.29549069,1622.9,1622.5,6.16315]
[1744685028038,6.29549069,1622.9,1622.5,12.32629]
[1744685028242,6.29549069,1622.9,1622.5,12.27629]
[1744685028547,0.13354069,1622.9,1622.6,6.22455139]
[1744685029444,6.29537069,1622.9,1622.6,6.16293]
[1744685030058,6.29537069,1622.9,1622.6,6.22455142]
[1744685030564,0.13354069,1622.9,1622.6,0.99983338]
[1744685030713,0.13354069,1622.9,1622.7,6.1625]
[1744685031843,6.29536069,1622.9,1622.6,0.46323338]
[1744685032015,6.29536069,1622.9,1622.5,6.16332]
[1744685032215,6.29536069,1622.9,1622.5,12.32649]
[1744685033062,0.7608,1622.7,1622.4,9.16368]
[1744685033221,6.92343,1622.7,1622.4,9.16368]
[1744685033415,0.13709856,1622.6,1622.4,9.16368]
[1744685033618,6.92343,1622.7,1622.4,9.16368]
[1744685033959,0.1369331,1622.6,1622.4,9.16368]
[1744685034258,0.7608,1622.7,1622.4,9.16368]
[1744685034550,0.1369331,1622.6,1622.4,15.32718]
[1744685034716,0.815,1622.9,1622.6,6.1628]
[1744685034916,0.13610576,1622.8,1622.6,12.86218]
[1744685035242,6.16183,1622.9,1622.6,6.69938]
[1744685035449,0.13610576,1622.7,1622.5,6.16329]
[1744685035654,6.16183,1622.9,1622.6,6.16286]
[1744685037782,6.16269,1622.7,1622.4,9.70024]
[1744685037937,6.16269,1622.7,1622.4,9.16364]
[1744685038562,6.16269,1622.7,1622.4,3.0]
[1744685039182,0.8109,1622.6,1622.3,6.16389]
[1744685039587,0.8109,1622.6,1622.3,12.32777]
[1744685040704,0.8109,1622.6,1622.3,6.16388]
[1744685040986,6.97384,1622.6,1622.3,6.16388]
[1744685042295,0.8109,1622.6,1622.3,12.32777]
[1744685042510,0.8109,1622.6,1622.3,6.16388]
[1744685042656,6.16372,1622.4,1622.1,0.4662834]
[1744685043003,6.16372,1622.4,1622.1,6.16484]
[1744685043170,6.16353,1622.5,1622.2,6.16439]
[1744685043372,7.55933184,1622.5,1622.2,6.16439]
[1744685044460,13.72287184,1622.5,1622.1,6.16472]
[1744685044991,7.55933184,1622.5,1622.1,6.16472]
[1744685045192,7.55933184,1622.5,1622.1,6.63021238]
[1744685046086,13.72288184,1622.5,1622.1,6.63021238]
[1744685046254,0.12976098,1622.4,1622.1,6.63021238]
[1744685046460,0.12976098,1622.4,1622.1,12.79484238]
[1744685046860,0.12976098,1622.4,1622.3,6.16408]
[1744685047060,0.12976098,1622.4,1622.3,9.22571886]
[1744685047291,0.8109,1622.6,1622.4,6.16368]
[1744685047496,13.1042,1622.8,1622.4,6.16368]
[1744685047682,1.31042,1622.7,1622.4,6.16368]
[1744685048397,7.4732,1622.7,1622.3,9.70068]
[1744685048995,13.6361,1622.7,1622.3,9.70068]
[1744685049292,1.31042,1622.7,1622.4,6.22531056]
[1744685049480,0.7794,1622.8,1622.5,6.16319]
[1744685049673,0.7794,1622.8,1622.5,12.32635]
[1744685049876,0.7548,1623.0,1622.6,6.22419119]
[1744685050070,0.7548,1623.0,1622.7,6.16241]
[1744685050275,2.632136,1623.0,1622.7,6.16241]
[1744685050788,8.793656,1623.0,1622.6,6.16257]
[1744685050966,8.793656,1623.0,1622.6,12.84883423]
[1744685051165,6.91632,1623.0,1622.6,12.78721314]
[1744685051677,6.91632,1623.0,1622.6,6.62448314]
[1744685052001,12.32395,1622.9,1622.6,0.46191314]
[1744685052168,12.32395,1622.9,1622.5,6.69988]
[1744685052599,13.631825,1622.9,1622.5,6.16328]
[1744685052769,6.16223,1622.8,1622.4,11.8597]
[1744685052967,6.97789,1622.7,1622.4,11.8597]
[1744685053193,6.97789,1622.7,1622.4,6.1637]
[1744685055378,6.16351,1622.5,1622.1,6.63029238]
[1744685055583,6.16351,1622.5,1622.1,12.79499238]
[1744685056411,6.16351,1622.5,1622.2,6.16439]
[1744685056706,6.9305,1622.6,1622.2,6.22602787]
[1744685057008,0.13108496,1622.5,1622.2,6.16439]
[1744685057305,6.29440496,1622.5,1622.1,12.79491238]
[1744685057506,6.16388,1622.4,1622.1,3.46549238]
[1744685057711,6.16388,1622.4,1622.1,9.63033238]
[1744685058098,0.13108496,1622.3,1622.1,9.63033238]
[1744685058484,6.16388,1622.4,1622.1,9.63033238]
[1744685058682,0.13108496,1622.2,1622.0,11.86109]
[1744685058910,0.7629,1622.3,1622.0,18.0261]
[1744685059083,0.12893328,1622.1,1622.0,18.0261]